[Event "21st IPCA World Championship 2022"]
[Site "Ashdod"]
[Date "2022.05.09"]
[Round "1.6"]
[White "Pilimon, Zbigniew"]
[Black "Campos, Eugenio"]
[Result "0-1"]
[ECO "A70"]
[WhiteElo "1620"]
[BlackElo "2247"]
[Annotator "TA"]
[PlyCount "108"]
[EventDate "2022.05.09"]
[EventType "swiss"]
[EventCountry "ISR"]
[SourceTitle "playchess.com"]
[Source "ChessBase"]
[SourceQuality "1"]
[TimeControl "5400+30"]

{[%evp 16,107,26,0,14,15,18,18,20,-2,27,19,37,27,34,21,39,-1,0,-70,-43,-50,-72,-31,0,-107,-104,-118,-58,-56,0,0,102,65,169,164,166,168,166,179,183,48,148,133,149,55,20,-153,97,0,0,0,185,87,108,83,89,99,94,69,145,70,193,112,245,174,346,135,270,140,218,74,62,61,239,239,245,255,250,249,251,92,89,-355,-355,-1446,-1403,-1813,-1696,-29996,-29997,-29997,-29998,-29999]} 1. d4 {[%emt 1:31:00]} Nf6 {[%emt 1:31:00]} 2. c4 {[%emt 0:00:00]} c5 {[%emt 0:00:00]} 3. d5 {[%emt 0:00:00]} e6 {[%emt 0:00:00]} 4. Nc3 {[%emt 0:00:00]} exd5 {[%emt 0:00:00]} 5. cxd5 {[%emt 0:00:00]} d6 {[%emt 0:00:00]} 6. e4 {[%emt 0:00:00]} g6 {[%emt 0:00:00]} 7. Nf3 {[%emt 0:00:00]} Bg7 {[%emt 0:00:00]} 8. Bb5+ {[%emt 0:00:00] 8.h3 is a critical line.} Nbd7 {[%emt 0:00:00]} 9. Bf4 {[%emt 0:00:00]} Qe7 {[%emt 0:00:00] A70: Modern Benoni: 6 e4 g6 7 Nf3.} 10. O-O {[%emt 0:00:00][%cal Of4d6]} O-O {[%emt 0:00:00]} 11. Re1 {[%emt 0:00:00]} a6 {[%emt 0:00:00] The position is equal.} 12. Bd3 {[%emt 0:00:00] [#]} Nh5 $146 {[%emt 0:00:00]} ({Predecessor:} 12... b5 13. a4 c4 14. Bf1 b4 15. Na2 Nc5 16. e5 Nfe4 17. exd6 Qb7 18. Bxc4 Bd7 {0-1 (29) Rutkowski,E (1785)-Dukaczewski,P (2265) Ramsowo 2013}) 13. Bg5 {[%emt 0:00:00]} Bf6 {[%emt 0:00:00]} 14. Bxf6 {[%emt 0:00:00]} Qxf6 {[%emt 0:00:00]} 15. g3 {[%emt 0:00:00]} b5 {[%emt 0:00:00]} 16. Bc2 {[%emt 0:00:00]} Re8 {[%emt 0:00:00]} 17. Nh4 {[%emt 0:00:00]} (17. Rc1 $11) 17... Ne5 {[%emt 0:00:00]} 18. f4 $1 {[%emt 0:00:00]} Nc4 {[%emt 0:00:00]} (18... Nxf4 19. gxf4 Qxf4 20. Ng2 $11) (18... Bg4 {with more complications.} 19. Qc1 Nc4 20. Kg2 b4) 19. Qc1 {[%emt 0:00:00]} Bd7 {[%emt 0:00:00]} (19... Bg4 $5 {[%cal Rf6d4]}) 20. Nf3 {[%emt 0:00:00]} (20. Kg2 $11 {keeps the balance.}) 20... Bg4 $17 {[%emt 0:00:00]} 21. Kg2 {[%emt 0:00:00]} b4 {[%emt 0:00:00] Black is much more active.} (21... Bxf3+ $17 22. Kxf3 Rab8) 22. Nd1 $15 {[%emt 0:00:00][%cal Bc3d1,Bd1e3,Be3c4,Bc4a5][%mdl 32]} Re7 {[%emt 0:00:00]} (22... Bxf3+ $15 23. Kxf3 Qd4) 23. Nd2 $36 {[%emt 0:00:00][%mdl 2048] White has some pressure.} Nb6 {[%emt 0:00:00]} (23... Nxf4+ $11 24. gxf4 Qxf4 25. Nxc4 Bh3+ 26. Kg1 (26. Kxh3 $2 Qf3+ 27. Kh4 f6 $19) 26... Qg4+ 27. Kf2 Qg2+ 28. Ke3 f5) 24. Ne3 {[%emt 0:00:00]} Bc8 {[%emt 0:00:00]} (24... Bd7 $14) 25. Ndc4 $18 {[%emt 0:00:00]} Nxc4 {[%emt 0:00:00]} 26. Nxc4 {[%emt 0:00:00] And now e5 would win.} Bb7 {[%emt 0:00:00]} 27. Qd2 {[%emt 0:00:00]} Rd8 {[%emt 0:00:00]} 28. Ba4 {[%emt 0:00:00]} (28. Kg1 $18) 28... Qg7 {[%emt 0:00:00]} (28... Rxe4 $1 $14 29. Rxe4 Qf5) 29. Na5 $16 {[%emt 0:00:00]} Nf6 {[%emt 0:00:00]} 30. Bc6 {[%emt 0:00:00]} (30. Rad1 $1 $16) 30... Bc8 $14 {[%emt 0:00:00]} 31. Qd3 {[%emt 0:00:00] [#]} (31. e5 $11 dxe5 32. fxe5) 31... Qh6 $2 {[%emt 0:00:00]} (31... Nxe4 $1 $17 {[%mdl 512] stays on course.} 32. Nc4 (32. Rab1 Bh3+) 32... Bh3+ $1 33. Kg1 f5) 32. h4 {[%emt 0:00:00]} (32. Ba4 $16) 32... Qh5 $11 {[%emt 0:00:00]} 33. Ba4 {[%emt 0:00:00]} Bd7 {[%emt 0:00:00]} ({Don't do} 33... Qg4 34. Nc6 Rde8 35. Nxe7+ Rxe7 36. Bc2 $16) (33... Rxe4 $1 $11 {and Black has nothing to worry.} 34. Rxe4 Bf5) 34. Bxd7 {[%emt 0:00:00]} (34. Nc6 $1 $18 {[%cal Rc6e7]} Bxc6 35. dxc6) 34... Rdxd7 {[%emt 0:00:00]} 35. Nc4 {[%emt 0:00:00]} Rd8 {[%emt 0:00:00]} 36. Rac1 {[%emt 0:02:17]} Qg4 {[%emt 0:00:00]} 37. Qf3 {[%emt 0:01:05]} Qd7 {[%emt 0:00:00]} (37... h5 $14) 38. Re2 {[%emt 0:04:15]} (38. Rcd1 $16) 38... Qb5 {[%emt 0:00:00]} (38... h5 $1 $14) 39. b3 {[%emt 0:01:10]} (39. f5 $1 $18 {[%cal Rf5g6] aiming for fxg6.} Kg7 40. fxg6 fxg6 41. Rf1 $1) 39... Qb8 {[%emt 0:00:00]} (39... h5 $16) 40. Rce1 {[%emt 0:00:33]} Qb5 $2 {[%emt 0:00:00]} (40... Red7 41. f5 Rf8) 41. Re3 $2 {[%emt 0:00:57]} (41. f5 $18) 41... a5 {[%emt 0:00:00]} (41... h5 $16 42. e5 Ng4) 42. g4 {[%emt 0:00:24]} ({White should try} 42. f5 $18 {Black must now prevent fxg6.} Rf8 43. Nxd6) 42... a4 {[%emt 0:00:00]} (42... Qd7 $16 {might work better.}) 43. h5 {[%emt 0:01:09]} (43. f5 $1 $18 {[%cal Rf5g6] and White stays clearly on top. fxg6 is the strong threat.} Qd7 44. g5) 43... axb3 $16 {[%emt 0:00:00]} 44. axb3 {[%emt 0:00:05] Threatens to win with hxg6.} Ra7 $2 {[%emt 0:00:00]} ({Better is} 44... Qd7 $14) 45. hxg6 $18 {[%emt 0:01:24]} hxg6 {[%emt 0:00:00]} 46. Qh3 {[%emt 0:00:30]} Nh7 {[%emt 0:00:00]} 47. Qh6 {[%emt 0:01:31]} (47. Rh1 $6 f6 48. Kf2 Rg7) 47... Qe8 {[%emt 0:00:00] [#]} 48. f5 $2 {[%emt 0:04:07]} ({Much less strong is} 48. Rh3 $6 f6 49. Rh4 Rg7 $16) (48. g5 $1 $18 {is the precise move to win.}) 48... Qf8 $16 {[%emt 0:00:00] [#]} 49. Qxh7+ {[%emt 0:03:45][%mdl 8192]} Kxh7 $19 {[%emt 0:00:00]} 50. f6 $2 {[%emt 0:00:06]} (50. Rh3+ Kg7 51. g5 Ra2+ 52. Kg3 gxf5 53. exf5) 50... Ra2+ {[%emt 0:00:00]} 51. Kg3 {[%emt 0:00:49]} Qh6 {[%emt 0:00:00] ( -> ...Qh2+)} 52. Kf3 {[%emt 0:00:52]} Qh3+ {[%emt 0:00:00] Black mates.} 53. Kf4 {[%emt 0:00:23]} Rf2+ {[%emt 0:00:00]} 54. Kg5 {[%emt 0:00:11]} Qh6# {[%emt 0:00:00] Weighted Error Value: White=0.90/Black=0.44} 0-1

[Event "21st IPCA World Championship 2022"]
[Site "Ashdod"]
[Date "2022.05.09"]
[Round "1.7"]
[White "Lipilin, Ilia"]
[Black "Oliel, Yehonatan"]
[Result "1-0"]
[ECO "D70"]
[WhiteElo "2198"]
[BlackElo "1535"]
[Annotator "TA"]
[PlyCount "67"]
[EventDate "2022.05.09"]
[EventType "swiss"]
[EventCountry "ISR"]
[SourceTitle "playchess.com"]
[Source "ChessBase"]
[SourceQuality "1"]
[TimeControl "5400+30"]

{[%evp 13,67,0,48,23,30,29,37,33,38,36,53,45,72,14,90,88,83,79,87,81,79,78,72,66,82,77,60,73,66,0,368,250,383,379,624,354,842,885,843,706,1127,1098,1066,693,654,589,1127,1205,1177,677,994,938,29996,29982,29997,29998]} 1. d4 {[%emt 0:00:03]} Nf6 {[%emt 0:00:35]} 2. c4 {[%emt 0:00:11]} g6 {[%emt 1:30:55]} 3. f3 {[%emt 0:00:14]} d5 {[%emt 0:00:00]} 4. cxd5 {[%emt 0:02:18]} Nxd5 {[%emt 0:00:00]} 5. e4 {[%emt 0:00:07]} Nb6 {[%emt 0:00:00]} 6. Nc3 {[%emt 0:00:10]} Bg7 {[%emt 0:00:00]} 7. Be3 {[%emt 0:00:05]} Nc6 {[%emt 0:00:00]} (7... O-O $11 {was preferrable.}) 8. Bb5 {[%emt 0:00:18] D70: Grünfeld: Unusual White 3rd moves (met by ...d5).} (8. d5 $5 {[%cal Rd5c6]} Ne5 9. f4 $11) 8... Bd7 {[%emt 0:00:00]} 9. Nge2 {[%emt 0:02:22]} a6 {[%emt 0:00:00]} 10. Bxc6 {[%emt 0:05:10] White is slightly better.} Bxc6 {[%emt 0:00:00]} 11. d5 {[%emt 0:00:07]} Bd7 {[%emt 0:00:00]} 12. Bd4 {[%emt 0:05:01]} O-O {[%emt 0:00:00] [#]} 13. a4 $146 {[%emt 0:03:44]} (13. Bxg7 $16 Kxg7 14. Qd4+ f6 15. Rd1) ({Predecessor:} 13. Bxg7 Kxg7 14. Qd4+ f6 15. O-O-O c6 16. g4 e5 17. dxe6 Bxe6 18. Qc5 Qc7 19. Rd6 {½-½ (61) Wiedermann,D (2151)-Kleiser,G (2292) Graz 2009}) 13... e6 {[%emt 0:00:00]} (13... e5 $11 14. Bc5 Re8) 14. Bxg7 $16 {[%emt 0:05:04]} Kxg7 {[%emt 0:00:00]} 15. a5 {[%emt 0:00:16]} Nc8 {[%emt 0:00:00]} 16. Qd4+ {[%emt 0:04:15]} Kg8 {[%emt 0:07:00]} 17. O-O $36 {[%emt 0:05:22][%mdl 2048] White is in control. White is much more active. The black rooks are badly placed.} Nd6 {[%emt 0:00:30]} 18. Rfd1 {[%emt 0:04:08]} Qg5 {[%emt 0:00:00]} 19. e5 {[%emt 1:01:05]} Nf5 {[%emt 0:00:00]} 20. Qf2 {[%emt 0:00:00] Strongly threatening Ne4.} Ne3 {[%emt 0:01:30]} 21. Rd3 {[%emt 0:00:00]} ({White should try} 21. Rdc1 $1 $14 Nxd5 22. Nxd5 exd5 23. Rxc7) 21... Nc4 $2 {[%mdl 8192]} (21... Nxd5 $11 {and Black stays safe.} 22. Nxd5 exd5) 22. Qd4 {[%emt 0:01:30]} exd5 {[%emt 0:01:00]} (22... Nxe5 $2 23. f4 Qf5 24. fxe5 $18) (22... Bb5 {was called for.} 23. f4 (23. Nxb5 axb5 24. f4 Qe7 $11) 23... Qe7) 23. Nxd5 {[%emt 0:00:30]} Bb5 $2 {[%emt 0:00:30]} (23... Nxe5 $2 24. f4 Qd8 25. fxe5 $18) (23... Qxe5 24. Nf6+ (24. Qxc4 Bb5 $16) 24... Kg7) 24. Nf6+ {[%emt 0:00:30] Pair of Knights!} Kh8 $2 {[%emt 0:00:30]} (24... Kg7) 25. f4 $18 {[%emt 0:00:30]} Qf5 {[%emt 0:00:30]} 26. g4 {[%emt 0:00:30][%cal Bg2g4,Bg4g5,Bg5g6][%mdl 32]} Qe6 {[%emt 0:00:30]} 27. Rh3 {[%emt 0:00:30][%csl Gf6][%cal Rh3h7]} h5 {[%emt 0:00:30] [#]} 28. Rxh5+ $1 {[%emt 0:00:30][%mdl 512]} gxh5 {[%emt 0:00:00]} 29. Qe4 {[%emt 0:00:00][%csl Gf6][%cal Re4h7]} Qxf6 {[%emt 0:00:00]} 30. exf6 {[%emt 0:00:00] Threatening mate with Qf5.} Rg8 {[%emt 0:00:00]} 31. g5 {[%emt 0:00:00] aiming for Qf3.} Nd6 {[%emt 0:00:00]} 32. Qf3 {[%emt 0:00:00][%cal Rf3h5]} Rge8 {[%emt 0:00:00]} 33. Qxh5+ {[%emt 0:00:00]} Kg8 {[%emt 0:00:00] [#]} 34. g6 $1 {[%emt 0:00:00] Weighted Error Value: White=0.64/Black=1.09} 1-0

[Event "21st IPCA World Championship 2022"]
[Site "Ashdod"]
[Date "2022.05.09"]
[Round "1.8"]
[White "Shchukina, Ekaterina"]
[Black "Valenta, Vit Vaclav"]
[Result "0-1"]
[ECO "B33"]
[WhiteElo "1496"]
[BlackElo "2014"]
[Annotator "TA"]
[PlyCount "50"]
[EventDate "2022.05.09"]
[EventType "swiss"]
[EventCountry "ISR"]
[SourceTitle "playchess.com"]
[Source "ChessBase"]
[SourceQuality "1"]
[TimeControl "5400+30"]

{[%evp 23,50,-41,-23,-37,-42,-41,-32,-45,-47,-44,-13,-14,0,-38,0,0,0,-35,-14,-20,0,0,0,-2,0,0,0,-97,-78]} 1. e4 {[%emt 0:00:07]} c5 {[%emt 0:00:10]} 2. Nf3 {[%emt 0:00:11]} e6 {[%emt 0:00:05]} 3. d4 {[%emt 0:00:37]} cxd4 {[%emt 0:00:11]} 4. Nxd4 {[%emt 0:00:10]} Nf6 {[%emt 0:00:41]} 5. Nc3 {[%emt 0:01:47]} Bb4 {[%emt 0:00:09]} 6. Bd3 {[%emt 0:01:07]} Nc6 {[%emt 0:00:57]} 7. Be3 {[%emt 0:02:35]} e5 {[%emt 0:05:36]} 8. Nb3 {[%emt 0:02:01]} d5 {[%emt 0:01:18]} 9. exd5 {[%emt 0:04:02]} Nxd5 {[%emt 0:00:12]} 10. Bd2 {[%emt 0:00:22]} Nxc3 {[%emt 0:00:42]} 11. bxc3 {[%emt 0:01:25]} Be7 {[%emt 0:00:12]} 12. O-O {[%emt 0:00:14]} O-O {[%emt 0:00:29]} 13. Qe2 {[%emt 0:05:30] B33: Sicilian: Pelikan and Sveshnikov Variations.} f5 {[%emt 0:06:03]} 14. Bc4+ {[%emt 0:03:28]} Kh8 {[%emt 0:00:06]} 15. Rad1 {[%emt 0:01:34] Black is slightly better.} Qc7 {[%emt 0:00:23] [#]} 16. Rfe1 $146 {[%emt 0:02:29]} ({Predecessor:} 16. f4 e4 17. Kh1 Bd7 18. Nd4 Rf6 19. Be1 Nxd4 20. cxd4 Rc8 21. Bb3 Rff8 22. a4 b6 23. c4 Qb7 24. Qe3 {½-½ (23) Couspeyre,T (1286)-Ramakrishnan,R (1682) LSS email 2020}) 16... Bf6 {[%emt 0:09:45]} 17. Bc1 {[%emt 0:11:06]} Qe7 {[%emt 0:14:31]} 18. Bb2 {[%emt 0:10:08]} Be6 {[%emt 0:12:35]} 19. Bxe6 {[%emt 0:18:19]} Qxe6 {[%emt 0:00:03]} 20. c4 {[%emt 0:01:32]} Qf7 {[%emt 0:04:26]} 21. Rd5 {[%emt 0:08:40]} Rad8 {[%emt 0:11:15]} 22. Red1 {[%emt 0:00:23]} Qe7 {[%emt 0:07:52]} 23. a3 {[%emt 0:06:47]} e4 {[%emt 0:04:56]} 24. Bxf6 {[%emt 0:02:07]} Qxf6 {[%emt 0:00:02]} 25. Nd4 {[%emt 0:02:31]} (25. Nc5 $11 Qe7 26. Nd7) 25... Rxd5 {[%emt 0:03:44] Weighted Error Value: White=0.20 (precise) /Black=0.08 (flawless)} 0-1

[Event "21st IPCA World Championship 2022"]
[Site "Ashdod"]
[Date "2022.05.09"]
[Round "1.9"]
[White "Cosic, Radoslav"]
[Black "Klein, Djimmy"]
[Result "1-0"]
[ECO "A49"]
[WhiteElo "2003"]
[BlackElo "1392"]
[Annotator "TA"]
[PlyCount "51"]
[EventDate "2022.05.09"]
[EventType "swiss"]
[EventCountry "ISR"]
[SourceTitle "playchess.com"]
[Source "ChessBase"]
[SourceQuality "1"]
[TimeControl "5400+30"]

{[%evp 14,51,32,20,33,33,37,30,65,53,56,39,65,24,73,43,92,99,95,102,89,82,150,139,156,149,286,133,245,243,520,520,520,510,537,515,1022,1019,1131,1016]} 1. Nf3 {[%emt 0:00:23]} Nf6 {[%emt 0:00:18]} 2. b3 {[%emt 0:00:42]} d6 {[%emt 0:00:43]} 3. d4 {[%emt 0:00:14]} g6 {[%emt 0:00:32]} 4. g3 {[%emt 0:00:19]} Bg7 {[%emt 0:00:28]} 5. Bb2 {[%emt 0:00:02]} O-O {[%emt 0:01:12]} 6. Bg2 {[%emt 0:00:09]} c6 {[%emt 0:00:47]} 7. O-O {[%emt 0:00:12]} Nbd7 {[%emt 0:02:44] 7...Bf5 is the modern continuation.} 8. Nbd2 {[%emt 0:00:46]} c5 {[%emt 0:02:21] A49: 1 d4 Nf6 2 Nf3 g6 3 g3: Anti-King's Indian systems.} 9. e3 {[%emt 0:02:25]} Rb8 {[%emt 0:01:01]} 10. a4 {[%emt 0:02:08] [#]} a5 $146 {[%emt 0:02:17] White has an edge.} ({Predecessor:} 10... b6 11. Qe2 Bb7 12. c4 Ne4 13. Nxe4 Bxe4 14. Rfd1 a6 15. Ra2 Qc7 16. Bf1 Nf6 17. d5 Bf5 18. Nd2 e5 19. dxe6 Bxe6 20. Bxf6 Bxf6 21. Ne4 Be7 {½-½ (21) Zueger,B (2460)-Markowski,T (2540) Yerevan 1996}) 11. Re1 {[%emt 0:00:35]} b6 {[%emt 0:01:32]} 12. c4 {[%emt 0:00:35]} Bb7 {[%emt 0:01:48]} 13. Qc2 {[%emt 0:00:02]} (13. d5 {keeps more tension.} e6 14. e4 Ng4 15. Bxg7 Kxg7 16. Qc2) 13... Rc8 {[%emt 0:03:12]} (13... e6 $11 {is superior.}) 14. Rad1 {[%emt 0:00:19]} Nb8 {[%emt 0:00:26]} (14... d5 $14) 15. d5 $16 {[%emt 0:01:23]} Na6 {[%emt 0:00:21]} 16. e4 {[%emt 0:00:31] White is more active.} Nb4 {[%emt 0:00:19] [#]} 17. Qb1 {[%emt 0:00:24]} e5 {[%emt 0:02:24]} (17... Rc7 $142) 18. dxe6 $1 {[%emt 0:00:11]} fxe6 {[%emt 0:00:16]} 19. Ng5 {[%emt 0:01:11] aiming for e5.} Qd7 {[%emt 0:02:16]} (19... e5 $16 {was worth a try.}) 20. f4 {[%emt 0:01:13]} (20. Bh3 $18 Rce8 21. e5) 20... Rce8 {[%emt 0:01:22]} (20... Nh5 $16 {keeps fighting.}) 21. e5 {[%emt 0:12:03]} Bxg2 $2 {[%emt 0:02:03]} (21... dxe5 22. Ndf3 (22. Bxe5 Bxg2 23. Ndf3 Qc8 $16) 22... Qe7) 22. exf6 $18 {[%emt 0:00:12] White is clearly winning.} (22. Kxg2 Nh5 $16) 22... Bxf6 {[%emt 0:00:25]} 23. Bxf6 {[%emt 0:00:16]} ({Weaker is} 23. Kxg2 Bxb2 24. Qxb2 Nd3 $16) 23... Rxf6 {[%emt 0:00:44]} 24. Kxg2 {[%emt 0:00:11]} h6 {[%emt 0:04:47]} (24... d5 $142 25. Ndf3 d4) 25. Nde4 {[%emt 0:00:27][%csl LRd6,LRf6]} Qb7 {[%emt 0:02:50] [#]} 26. Kg1 $1 {[%emt 0:02:26] Weighted Error Value: White=0.16 (very precise) /Black=0.56} 1-0

[Event "21st IPCA World Championship 2022"]
[Site "Ashdod"]
[Date "2022.05.09"]
[Round "1.10"]
[White "Volodarsky, Michael"]
[Black "Srimskov, Elishar"]
[Result "0-1"]
[ECO "E68"]
[WhiteElo "1400"]
[BlackElo "1992"]
[Annotator "TA"]
[PlyCount "56"]
[EventDate "2022.05.09"]
[EventType "swiss"]
[EventCountry "ISR"]
[SourceTitle "playchess.com"]
[Source "ChessBase"]
[SourceQuality "1"]
[TimeControl "5400+30"]

{[%evp 20,56,31,-14,6,-12,-4,-106,-77,-76,-81,-132,-140,-214,-213,-306,-333,-448,-422,-432,-434,-1337,-1321,-2243,-1798,-3337,-3177,-3780,-3649,-29987,-5519,-29989,-29990,-29990,-29991,-29991,-29991,-29991,-29992]} 1. d4 {[%emt 0:00:16]} Nf6 {[%emt 0:00:26]} 2. c4 {[%emt 0:00:21]} g6 {[%emt 0:00:55]} 3. Nc3 {[%emt 0:00:12]} Bg7 {[%emt 0:00:09]} 4. e4 {[%emt 0:00:12]} d6 {[%emt 0:00:18]} 5. g3 {[%emt 0:02:04]} O-O {[%emt 0:01:04]} 6. Bg2 {[%emt 0:00:20]} Nbd7 {[%emt 0:01:03][%cal Bb8d7,Bd7c5,Bc5e6][%mdl 32]} 7. Nf3 {[%emt 0:01:12]} e5 {[%emt 0:01:45]} 8. O-O {[%emt 0:00:17]} exd4 {[%emt 0:04:12]} 9. Nxd4 {[%emt 0:00:05]} Nc5 {[%emt 0:03:25]} 10. Re1 {[%emt 0:04:39]} Re8 {[%emt 0:02:16]} 11. f3 {[%emt 0:00:07]} a5 {[%emt 0:02:51][%cal Ba7a5,Ba5a4][%mdl 32] E68: King's Indian: Fianchetto: 6...Nbd7 7 0-0 e5 8 e4.} 12. Bf4 {[%emt 0:04:49]} Nfd7 {[%emt 0:01:55]} 13. Nb3 {[%emt 0:04:50] [#]} (13. b3 $11 {remains equal.}) 13... Ne6 $1 $17 {[%emt 0:02:08] aiming for ...a4. Black is better.} 14. Be3 {[%emt 0:03:01]} Ne5 {[%emt 0:01:44]} 15. Qe2 {[%emt 0:02:27]} (15. Bf2 $142) 15... a4 {[%emt 0:01:43]} 16. Nc1 {[%emt 0:05:33]} (16. f4 $17) 16... a3 $19 {[%emt 0:00:37] [#] Hoping for ...axb2.} 17. Rb1 $146 {[%emt 0:07:45]} (17. Nd1 {keeps fighting.}) ({Predecessor:} 17. Nd1 axb2 18. Nxb2 Qf6 19. Rb1 Ra3 20. f4 Nc6 21. Nbd3 Qc3 22. Rb3 Qa5 23. Qf2 {0-1 (58) Janos,J (2140)-Horvath,M (2200) Slovakia 2017}) 17... axb2 {[%emt 0:00:40]} 18. Qxb2 {[%emt 0:05:47]} Nxc4 {[%emt 0:00:31]} 19. Qb3 {[%emt 0:07:08]} Nxe3 {[%emt 0:00:43]} 20. Bh3 {[%emt 0:04:02]} (20. Rxe3 $142 Bd4 21. Nd1) 20... Nd4 {[%emt 0:01:18][%csl LRb3,LRf3,LRh3]} 21. Qb2 {[%emt 0:02:52]} Nxf3+ {[%emt 0:00:40]} 22. Kf2 {[%emt 0:00:30]} Nxe1 {[%emt 0:02:59]} 23. Kxe1 {[%emt 0:05:35]} Bxh3 {[%emt 0:00:26]} 24. Qd2 {[%emt 0:02:33]} Nc4 {[%emt 0:02:02]} (24... Bxc3 $142 25. Qxc3 Rxe4 26. Qb3 Qf6 27. Rb2 Nc4+ 28. Kd1 Re1+ 29. Kc2 Bf5+ 30. Nd3 Re2+ 31. Kc1 Bxd3 32. Rxe2 Qa1+ 33. Qb1 Qxb1#) 25. Qd3 {[%emt 0:02:33]} Bxc3+ {[%emt 0:00:45] Black mates.} 26. Qxc3 {[%emt 0:00:23]} Rxe4+ {[%emt 0:00:12]} 27. Kd1 {[%emt 0:00:34]} Ne3+ {[%emt 0:01:27]} 28. Kd2 {[%emt 0:01:56]} Qg5 {Black took control after the opening.  Weighted Error Value: White=1.90/Black=0.46} 0-1

[Event "21st IPCA World Championship 2022"]
[Site "Ashdod"]
[Date "2022.05.09"]
[Round "1.11"]
[White "Babanov, Aleksandr"]
[Black "Frumin, Rebeka"]
[Result "1-0"]
[ECO "C47"]
[WhiteElo "1929"]
[BlackElo "1319"]
[Annotator "TA"]
[PlyCount "83"]
[EventDate "2022.05.09"]
[EventType "swiss"]
[EventCountry "ISR"]
[SourceTitle "playchess.com"]
[Source "ChessBase"]
[SourceQuality "1"]
[TimeControl "5400+30"]

{[%evp 23,83,44,47,56,50,42,60,63,73,61,202,196,412,321,310,31,38,21,15,0,213,222,298,81,91,83,347,345,480,397,409,386,478,450,503,458,538,485,522,485,531,543,590,582,585,574,627,626,625,608,1388,1366,1358,1407,29986,29987,29987,29988,29988,29985,29998,29999]} 1. e4 {[%emt 0:00:06]} e5 {[%emt 0:00:26]} 2. Nf3 {[%emt 0:00:06]} Nc6 {[%emt 0:00:52]} 3. Nc3 {[%emt 0:00:06]} Nf6 {[%emt 0:01:04]} 4. d4 {[%emt 0:00:07]} exd4 {[%emt 0:01:45]} 5. Nxd4 {[%emt 0:00:05]} Bb4 {[%emt 0:02:52]} 6. Nxc6 {[%emt 0:01:22]} bxc6 {[%emt 0:00:22]} 7. Bd3 {[%emt 0:00:09]} O-O {[%emt 0:01:46]} 8. O-O {[%emt 0:00:09]} d5 {[%emt 0:01:42]} 9. exd5 {[%emt 0:00:09]} Bxc3 {[%emt 0:00:49]} 10. bxc3 {[%emt 0:00:09]} cxd5 {[%emt 0:01:41]} 11. Bg5 {[%emt 0:01:47]} Qd6 {[%emt 0:02:50]} 12. Bxf6 {[%emt 0:02:21]} Qxf6 {[%emt 0:00:16]} 13. Qh5 {[%emt 0:00:18][%csl Gd3,LRd5,LRh7][%cal Rh5h7] [#] C47: Scotch Four Knights and Four Knights with 4 g3.} g6 {[%emt 0:02:13]} 14. Qxd5 {[%emt 0:00:24]} Be6 {[%emt 0:00:32]} 15. Qc5 {[%emt 0:01:52] White is slightly better.} Rfc8 {[%emt 0:03:26] [#]} 16. f4 $146 {[%emt 0:04:42][%cal Bf2f4,Bf4f5][%mdl 32]} ({Predecessor:} 16. Ba6 Rd8 17. Qxc7 Bd5 18. Bd3 Qg5 19. Qg3 Qd2 20. c4 Bb7 21. Qc7 Rab8 22. c5 {1-0 (39) Herman,M-Zaleska,N Poland 2007}) 16... c6 {[%emt 0:03:11]} (16... Bf5 $14) 17. f5 $18 {[%emt 0:00:57]} Qg5 $2 {[%emt 0:04:23]} (17... gxf5 18. Bxf5 Qh6) 18. h4 {[%emt 0:04:49]} Qh5 {[%emt 0:00:43]} 19. Ba6 $2 {[%emt 0:04:39]} (19. Rae1 Re8 20. Be2 Qxh4 21. fxe6 Rxe6 22. Qf2 Qxf2+ 23. Kxf2) (19. Rae1 $18 Re8 20. Be2 Qxh4 21. fxe6 Rxe6 22. Qf2 Qxf2+ 23. Kxf2) 19... Rd8 $14 {[%emt 0:02:44][%cal Re6f5]} 20. Qxc6 {[%emt 0:06:58]} Bxf5 {[%emt 0:02:45]} 21. Qf6 $36 {[%emt 0:03:40][%mdl 2048] [#] aiming for Bc4. White is more active.} Rab8 $2 {[%emt 0:02:56]} (21... Be6 $11 {and Black has nothing to worry.}) 22. Bc4 $18 {[%emt 0:05:31]} Rf8 {[%emt 0:01:11]} 23. Rf2 $2 {[%emt 0:05:49]} (23. Rae1 $18 {Re7 is the strong threat.} Be6 24. Bxe6 Qc5+ 25. Kh1 (25. Rf2 fxe6 26. Qxe6+ Kh8 $16) 25... fxe6 26. Qxe6+ Kh8 27. c4) 23... Rb6 {[%emt 0:01:40]} 24. Qe7 {[%emt 0:04:13] White is more active.} Rb2 $2 {[%emt 0:02:06][%mdl 8192]} (24... Qg4 25. Bd5 (25. Qxa7 Rc6) 25... Be6 26. Qxa7 Rfb8) (24... Qh6 $16) 25. Bb3 {[%emt 0:01:33]} Qg4 {[%emt 0:04:19]} 26. Qa3 {[%emt 0:00:55]} Rxb3 {[%emt 0:00:10]} 27. cxb3 {[%emt 0:00:46]} (27. axb3 Qg3 28. Qc5 Qxh4 29. Qxa7 Qe4) ({Much less strong is} 27. axb3 Qg3 28. Qxa7 Qxc3 $18) 27... Qxh4 {[%emt 0:00:42]} 28. Qxa7 {[%emt 0:00:31]} Qg3 {[%emt 0:01:02]} 29. Qd4 {[%emt 0:00:59]} h5 {[%emt 0:00:41]} 30. Re1 {[%emt 0:00:32]} Ra8 {[%emt 0:01:00]} 31. a4 {[%emt 0:00:52]} h4 {[%emt 0:00:18]} 32. Qe3 {[%emt 0:00:57]} Qb8 {[%emt 0:01:02]} 33. c4 {[%emt 0:00:54]} Qc8 {[%emt 0:01:16]} 34. Rfe2 {[%emt 0:02:52]} Be6 {[%emt 0:01:04]} 35. Qh6 {[%emt 0:00:43][%cal Oe2e6] And now Rxe6! would win.} Qc5+ {[%emt 0:00:47]} 36. Kh1 {[%emt 0:00:30]} h3 {[%emt 0:02:22]} 37. Rxe6 {[%emt 0:00:31] Threatening mate with Re8+.} hxg2+ {[%emt 0:00:35]} 38. Kxg2 {[%emt 0:00:05] Re8+ would kill now.} fxe6 {[%emt 0:00:31]} 39. Qxg6+ {[%emt 0:00:16] White mates.} Kf8 {[%emt 0:00:31]} 40. Rxe6 {[%emt 0:01:40]} Qd4 {[%emt 0:01:35]} 41. Rf6+ {[%emt 0:00:36]} Ke7 {[%emt 0:00:41]} 42. Rf7+ {[%emt 0:45:50] Weighted Error Value: White=0.68/Black=0.86} 1-0